[Event "GER-ch Youth U14w 2019"]
[Site "Willingen"]
[Date "2019.06.09"]
[Round "1.8"]
[White "Petersen, Sophie"]
[Black "Oswald, Hannah"]
[Result "0-1"]
[ECO "C70"]
[WhiteElo "1430"]
[BlackElo "1632"]
[Annotator "NA"]
[PlyCount "134"]
[EventDate "2019.06.07"]
[EventType "swiss"]
[EventRounds "9"]
[EventCountry "GER"]
[SourceTitle "playchess.com"]
[Source "ChessBase"]
[SourceQuality "1"]
[TimeControl "40/5400+30:1800+30"]

1. e4 {[%emt 0:00:00]} e5 {[%emt 0:00:00]} 2. Nf3 {[%emt 0:00:00]} Nc6 {[%emt 0:00:00]} 3. Bb5 {[%emt 0:00:00]} a6 {[%emt 0:00:03]} 4. Ba4 {[%emt 0:00:00]} Bc5 {[%emt 0:00:33]} 5. O-O {[%emt 0:00:15]} d6 {[%emt 0:01:24]} 6. c3 {[%emt 0:00:37]} Bd7 {[%emt 0:10:07]} 7. d3 {[%emt 0:00:44]} Nge7 {[%emt 0:03:41]} 8. Nbd2 {[%emt 0:01:00]} O-O {[%emt 0:00:54]} 9. Re1 {[%emt 0:00:37]} h6 {[%emt 0:13:35]} 10. Nf1 {[%emt 0:00:35]} f5 {[%emt 0:02:41]} 11. Bb3+ {[%emt 0:02:02]} Kh8 {[%emt 0:02:41]} 12. exf5 {[%emt 0:07:38]} Bxf5 {[%emt 0:03:18]} 13. Be3 {[%emt 0:03:20]} Ba7 {[%emt 0:02:57]} 14. Bxa7 {[%emt 0:01:08]} Rxa7 {[%emt 0:01:21]} 15. h3 {[%emt 0:01:58]} Ng6 {[%emt 0:11:27]} 16. Ng3 {[%emt 0:08:06]} Bd7 {[%emt 0:02:29]} 17. d4 {[%emt 0:05:06]} exd4 {[%emt 0:12:31]} 18. Nxd4 {[%emt 0:01:35]} Qf6 {[%emt 0:04:29]} 19. Ne4 {[%emt 0:09:39]} Qh4 {[%emt 0:04:28]} 20. Nf3 {[%emt 0:05:54]} Qf4 {[%emt 0:03:19]} 21. Qd3 {[%emt 0:03:32]} Nge5 {[%emt 0:03:38]} 22. Nxe5 {[%emt 0:01:39]} Nxe5 {[%emt 0:00:23]} 23. Qe3 {[%emt 0:01:23]} Raa8 {[%emt 0:01:02]} 24. Qxf4 {[%emt 0:01:09]} Rf7 25. Qf5 Rxf5 {[%emt 0:00:44]} 26. Rac1 Rf4 27. Rcd1 {[%emt 0:02:26]} Bf5 {[%emt 0:05:26]} 28. Ng3 {[%emt 0:01:18]} Bg6 {[%emt 0:02:11]} 29. Bd5 {[%emt 0:07:17]} Raf8 {[%emt 0:01:22]} 30. f3 {[%emt 0:03:44]} b6 {[%emt 0:00:27]} 31. Be4 {[%emt 0:01:35]} Bxe4 {[%emt 0:01:09]} 32. Nxe4 {[%emt 0:05:09]} R4f7 {[%emt 0:01:35]} 33. b3 {[%emt 0:04:05]} a5 {[%emt 0:00:51]} 34. c4 {[%emt 0:01:42]} Re7 {[%emt 0:01:06]} 35. Nc3 {[%emt 0:00:50]} Rfe8 {[%emt 0:01:04]} 36. Re4 {[%emt 0:02:24]} Rf8 {[%emt 0:02:19]} 37. Nd5 {[%emt 0:01:42]} Ref7 {[%emt 0:00:45]} 38. f4 {[%emt 0:03:33]} Ng6 {[%emt 0:00:33]} 39. g3 {[%emt 0:00:39]} Kh7 {[%emt 0:00:35]} 40. Kg2 {[%emt 0:01:27]} Ra8 {[%emt 0:00:51]} 41. a4 {[%emt 0:30:55]} Rb8 {[%emt 0:30:48]} 42. h4 {[%emt 0:01:02]} h5 {[%emt 0:00:22]} 43. Rde1 {[%emt 0:03:49]} Rbf8 {[%emt 0:01:18]} 44. Re8 {[%emt 0:02:40]} Rxe8 {[%emt 0:00:00]} 45. Rxe8 {[%emt 0:00:00]} c6 {[%emt 0:00:00]} 46. Nc3 {[%emt 0:00:00]} Re7 {[%emt 0:00:00]} 47. Rxe7 {[%emt 0:00:00]} Nxe7 {[%emt 0:00:00]} 48. Kf3 {[%emt 0:00:00]} Nf5 {[%emt 0:00:00]} 49. Ne2 {[%emt 0:00:00]} Kg6 {[%emt 0:00:00]} 50. Ke4 {[%emt 0:00:00]} Kf6 {[%emt 0:00:00]} 51. Kf3 {[%emt 0:00:00]} Ke6 {[%emt 0:00:00]} 52. Ke4 {[%emt 0:00:00]} d5+ {[%emt 0:00:00]} 53. cxd5+ {[%emt 0:00:00]} cxd5+ {[%emt 0:00:00]} 54. Kd3 {[%emt 0:00:00]} Kd6 {[%emt 0:00:00]} 55. Kc3 {[%emt 0:00:00]} Kc5 {[%emt 0:00:00]} 56. Kd2 {[%emt 0:00:00]} Nd4 {[%emt 0:00:00]} 57. Nxd4 {[%emt 0:00:00]} Kxd4 {[%emt 0:00:00]} 58. f5 {[%emt 0:00:00]} Ke4 {[%emt 0:00:00]} 59. Kc3 {[%emt 0:00:00]} d4+ {[%emt 0:00:00]} 60. Kd2 {[%emt 0:00:00]} Kxf5 {[%emt 0:00:00]} 61. Kd3 {[%emt 0:00:00]} Ke5 {[%emt 0:00:00]} 62. Kd2 {[%emt 0:00:00]} Ke4 {[%emt 0:00:44]} 63. Ke2 {[%emt 0:00:00]} d3+ {[%emt 0:00:41]} 64. Kd1 {[%emt 0:00:00]} Ke3 {[%emt 0:00:15]} 65. Ke1 {[%emt 0:00:00]} d2+ {[%emt 0:00:37]} 66. Kd1 {[%emt 0:00:00]} g6 {[%emt 0:00:04]} 67. Kc2 {[%emt 0:00:01]} Ke2 {[%emt 0:00:25] normal} 0-1

[Event "GER-ch Youth U14w 2019"]
[Site "Willingen"]
[Date "2019.06.09"]
[Round "1.9"]
[White "Werner, Rosalie"]
[Black "Sinner, Joselyne"]
[Result "1-0"]
[ECO "C68"]
[WhiteElo "1610"]
[BlackElo "1521"]
[Annotator "NA"]
[PlyCount "38"]
[EventDate "2019.06.07"]
[EventType "swiss"]
[EventRounds "9"]
[EventCountry "GER"]
[SourceTitle "playchess.com"]
[Source "ChessBase"]
[SourceQuality "1"]
[TimeControl "40/5400+30:1800+30"]

1. e4 {[%emt 0:00:00]} e5 {[%emt 0:00:00]} 2. Nf3 {[%emt 0:00:00]} Nc6 {[%emt 0:00:00]} 3. Bb5 {[%emt 0:00:00]} a6 {[%emt 0:00:00]} 4. Bxc6 {[%emt 0:00:00]} dxc6 {[%emt 0:00:00]} 5. O-O {[%emt 0:00:00]} Qf6 {[%emt 0:00:36]} 6. d4 {[%emt 0:00:02]} exd4 {[%emt 0:04:40]} 7. Qxd4 {[%emt 0:01:03]} Qxd4 {[%emt 0:01:10]} 8. Nxd4 {[%emt 0:00:07]} Bd7 {[%emt 0:02:02]} 9. Be3 {[%emt 0:02:48]} O-O-O {[%emt 0:01:57]} 10. Nd2 {[%emt 0:04:54]} Ne7 {[%emt 0:16:37]} 11. Rad1 {[%emt 0:05:58]} Ng6 {[%emt 0:05:49]} 12. Nc4 {[%emt 0:10:15]} c5 {[%emt 0:16:22]} 13. Nb3 {[%emt 0:01:01]} b6 {[%emt 0:02:34]} 14. Rd2 {[%emt 0:14:50]} Be7 {[%emt 0:18:11]} 15. Rfd1 {[%emt 0:06:04]} Be6 {[%emt 0:04:00]} 16. Rxd8+ {[%emt 0:05:29]} Rxd8 {[%emt 0:00:11]} 17. Rxd8+ {[%emt 0:00:14]} Bxd8 {[%emt 0:01:32]} 18. Nbd2 {[%emt 0:04:42]} b5 {[%emt 0:08:30]} 19. Na3 {[%emt 0:03:04]} Be7 {[%emt 0:04:03] normal} 1-0

[Event "GER-ch Youth U14w 2019"]
[Site "Willingen"]
[Date "2019.06.09"]
[Round "1.10"]
[White "Berghold, Lotta"]
[Black "Butenandt, Svenja"]
[Result "0-1"]
[ECO "A45"]
[WhiteElo "1471"]
[BlackElo "1722"]
[Annotator "NA"]
[PlyCount "92"]
[EventDate "2019.06.07"]
[EventType "swiss"]
[EventRounds "9"]
[EventCountry "GER"]
[SourceTitle "playchess.com"]
[Source "ChessBase"]
[SourceQuality "1"]
[TimeControl "40/5400+30:1800+30"]

1. d4 {[%emt 0:00:00]} Nf6 {[%emt 0:00:00]} 2. Nd2 {[%emt 0:00:00]} d5 {[%emt 0:00:00]} 3. Ngf3 {[%emt 0:00:00]} e6 {[%emt 0:00:54]} 4. e3 {[%emt 0:00:00]} Bd6 {[%emt 0:00:59]} 5. Bd3 {[%emt 0:00:01]} O-O {[%emt 0:00:37]} 6. O-O {[%emt 0:00:20]} Nbd7 {[%emt 0:01:18]} 7. e4 {[%emt 0:04:19]} dxe4 {[%emt 0:01:26]} 8. Nxe4 {[%emt 0:00:09]} Nxe4 {[%emt 0:01:52]} 9. Bxe4 {[%emt 0:00:07]} Nf6 {[%emt 0:01:11]} 10. Bd3 {[%emt 0:00:11]} b6 {[%emt 0:03:16]} 11. Bg5 {[%emt 0:13:16]} Bb7 {[%emt 0:04:02]} 12. Re1 {[%emt 0:11:25]} h6 {[%emt 0:04:18]} 13. Bxf6 {[%emt 0:06:04]} Qxf6 {[%emt 0:00:17]} 14. Be4 {[%emt 0:00:26]} Bxe4 {[%emt 0:01:52]} 15. Rxe4 {[%emt 0:00:04]} Rfd8 {[%emt 0:02:31]} 16. c3 {[%emt 0:05:10]} c5 {[%emt 0:01:15]} 17. Qe2 {[%emt 0:03:43]} Rac8 {[%emt 0:08:02]} 18. Rd1 {[%emt 0:03:24]} Qf5 {[%emt 0:07:20]} 19. a3 {[%emt 0:09:05]} g5 {[%emt 0:09:11]} 20. dxc5 {[%emt 0:11:05]} Bxh2+ {[%emt 0:09:15]} 21. Nxh2 {[%emt 0:04:38]} Rxd1+ {[%emt 0:00:13]} 22. Qxd1 {[%emt 0:00:04]} Qxe4 {[%emt 0:00:14]} 23. cxb6 {[%emt 0:00:42]} axb6 {[%emt 0:00:24]} 24. Qd7 {[%emt 0:01:42]} Qc6 {[%emt 0:01:31]} 25. Qd4 {[%emt 0:00:47]} Qc5 {[%emt 0:01:41]} 26. Qf6 {[%emt 0:01:56]} Qf8 {[%emt 0:02:33]} 27. Ng4 {[%emt 0:04:36]} Qg7 {[%emt 0:04:30]} 28. Qe7 {[%emt 0:09:01]} Qf8 {[%emt 0:14:42]} 29. Qf6 {[%emt 0:02:08]} Kh7 {[%emt 0:00:59]} 30. Qe5 {[%emt 0:03:50]} Qg7 {[%emt 0:03:43]} 31. Qd6 {[%emt 0:01:49]} h5 {[%emt 0:03:32]} 32. Ne3 {[%emt 0:00:53]} b5 {[%emt 0:03:58]} 33. Qd3+ {[%emt 0:00:21]} Qg6 {[%emt 0:00:14]} 34. Qxb5 {[%emt 0:00:42]} Qb1+ {[%emt 0:01:22]} 35. Nf1 {[%emt 0:00:28]} Kg6 {[%emt 0:00:50]} 36. Qb6 {[%emt 0:01:03]} Rxc3 {[%emt 0:02:14]} 37. Qb8 {[%emt 0:01:57]} Rc1 {[%emt 0:00:44]} 38. Qg8+ {[%emt 0:02:29]} Kf6 {[%emt 0:02:40]} 39. Qd8+ {[%emt 0:00:16]} Kf5 {[%emt 0:01:08]} 40. Qa5+ {[%emt 0:00:28]} e5 {[%emt 0:01:06]} 41. Qb5 {[%emt 0:30:23]} Rd1 {[%emt 0:31:32]} 42. b4 {[%emt 0:01:27]} Qd3 {[%emt 0:00:00]} 43. Qxd3+ {[%emt 0:00:00]} Rxd3 {[%emt 0:00:00]} 44. Ng3+ {[%emt 0:00:00]} Kg6 {[%emt 0:00:00]} 45. a4 {[%emt 0:00:00]} Rd4 {[%emt 0:00:00]} 46. Kf1 {[%emt 0:00:00]} Rxb4 {[%emt 0:00:00] normal} 0-1

[Event "GER-ch Youth U14w 2019"]
[Site "Willingen"]
[Date "2019.06.09"]
[Round "1.11"]
[White "Becker, Linda"]
[Black "Zixin, Li"]
[Result "1/2-1/2"]
[ECO "B22"]
[WhiteElo "1683"]
[BlackElo "1284"]
[Annotator "NA"]
[PlyCount "65"]
[EventDate "2019.06.07"]
[EventType "swiss"]
[EventRounds "9"]
[EventCountry "GER"]
[SourceTitle "playchess.com"]
[Source "ChessBase"]
[SourceQuality "1"]
[TimeControl "40/5400+30:1800+30"]

1. e4 {[%emt 0:00:00]} c5 {[%emt 0:00:00]} 2. c3 {[%emt 0:00:00]} Nf6 {[%emt 0:00:00]} 3. e5 {[%emt 0:00:00]} Nd5 {[%emt 0:00:00]} 4. d4 {[%emt 0:00:00]} cxd4 {[%emt 0:00:01]} 5. cxd4 {[%emt 0:00:22]} d6 {[%emt 0:00:18]} 6. Nf3 {[%emt 0:01:20]} Nc6 {[%emt 0:03:12]} 7. Bc4 {[%emt 0:04:22]} dxe5 {[%emt 0:00:12]} 8. dxe5 {[%emt 0:05:27]} Nb6 {[%emt 0:01:13]} 9. Qxd8+ {[%emt 0:07:22]} Nxd8 {[%emt 0:00:08]} 10. Bb3 {[%emt 0:00:30]} g6 {[%emt 0:01:11]} 11. O-O {[%emt 0:01:07]} Bg7 {[%emt 0:00:04]} 12. Nc3 {[%emt 0:00:27]} O-O {[%emt 0:00:29]} 13. Be3 {[%emt 0:01:18]} Bg4 {[%emt 0:01:45]} 14. Rfe1 {[%emt 0:04:24]} Nc6 {[%emt 0:08:57]} 15. Bf4 {[%emt 0:11:35]} Bxf3 {[%emt 0:05:24]} 16. gxf3 {[%emt 0:00:08]} Nd7 {[%emt 0:00:06]} 17. e6 {[%emt 0:01:36]} Nde5 {[%emt 0:06:52]} 18. Bxe5 {[%emt 0:01:46]} Nxe5 {[%emt 0:00:08]} 19. exf7+ {[%emt 0:00:12]} Nxf7 {[%emt 0:00:31]} 20. Rxe7 {[%emt 0:00:25]} Rab8 {[%emt 0:01:25]} 21. Rd1 {[%emt 0:01:02]} Bf6 {[%emt 0:02:02]} 22. Rxf7 {[%emt 0:01:53]} Rxf7 {[%emt 0:00:10]} 23. Rd7 {[%emt 0:00:09]} Rbf8 {[%emt 0:01:20]} 24. Ne4 {[%emt 0:00:39]} Kg7 {[%emt 0:00:51]} 25. Bxf7 {[%emt 0:04:24]} Rxf7 {[%emt 0:00:08]} 26. Rxf7+ {[%emt 0:01:37]} Kxf7 {[%emt 0:00:06]} 27. b3 {[%emt 0:01:10]} Be7 {[%emt 0:01:17]} 28. Kf1 {[%emt 0:00:36]} Ke6 {[%emt 0:00:12]} 29. Ke2 {[%emt 0:00:16]} Ke5 {[%emt 0:00:23]} 30. Ke3 {[%emt 0:04:13]} g5 {[%emt 0:02:34]} 31. a3 {[%emt 0:04:52]} Bxa3 {[%emt 0:00:36]} 32. Kd3 {[%emt 0:02:01]} Kf4 {[%emt 0:03:49]} 33. Ke2 {[%emt 0:06:03] normal} 1/2-1/2

[Event "GER-ch Youth U14w 2019"]
[Site "Willingen"]
[Date "2019.06.09"]
[Round "1.12"]
[White "Avetyan, Manan"]
[Black "Zoellner, Bente"]
[Result "0-1"]
[ECO "B33"]
[WhiteElo "1307"]
[BlackElo "1530"]
[Annotator "NA"]
[PlyCount "74"]
[EventDate "2019.06.07"]
[EventType "swiss"]
[EventRounds "9"]
[EventCountry "GER"]
[SourceTitle "playchess.com"]
[Source "ChessBase"]
[SourceQuality "1"]
[TimeControl "40/5400+30:1800+30"]

1. e4 {[%emt 0:00:00]} c5 {[%emt 0:00:00]} 2. Nf3 {[%emt 0:00:00]} Nc6 {[%emt 0:00:00]} 3. d4 {[%emt 0:00:00]} cxd4 {[%emt 0:00:00]} 4. Nxd4 {[%emt 0:00:00]} Nf6 {[%emt 0:00:28]} 5. Nc3 {[%emt 0:00:00]} e5 {[%emt 0:00:10]} 6. Ndb5 {[%emt 0:00:03]} d6 {[%emt 0:00:12]} 7. Bg5 {[%emt 0:00:23]} a6 {[%emt 0:00:33]} 8. Na3 {[%emt 0:00:10]} b5 {[%emt 0:00:08]} 9. Bxf6 {[%emt 0:00:12]} gxf6 {[%emt 0:00:32]} 10. Nd5 {[%emt 0:00:43]} Be7 {[%emt 0:01:15]} 11. c3 {[%emt 0:02:36]} O-O 12. Qh5 {[%emt 0:22:44]} Be6 {[%emt 0:18:36]} 13. Bd3 {[%emt 0:03:03]} Kh8 {[%emt 0:07:47]} 14. Nc2 {[%emt 0:23:30]} Rg8 {[%emt 0:09:41]} 15. Nce3 {[%emt 0:04:04]} Rg5 {[%emt 0:08:02]} 16. Qf3 {[%emt 0:03:45]} Rg6 {[%emt 0:09:05]} 17. g4 {[%emt 0:04:26]} Qg8 {[%emt 0:04:39]} 18. O-O-O {[%emt 0:07:42]} Qg7 {[%emt 0:04:54]} 19. h3 {[%emt 0:06:19]} Bd8 {[%emt 0:05:02]} 20. Bc2 {[%emt 0:07:29]} Ne7 {[%emt 0:04:03]} 21. Nf5 {[%emt 0:02:29]} Qf8 {[%emt 0:05:50]} 22. Nxd6 {[%emt 0:00:35]} Nxd5 {[%emt 0:02:27]} 23. exd5 {[%emt 0:00:22]} Bd7 {[%emt 0:05:32]} 24. Bxg6 {[%emt 0:01:32]} fxg6 {[%emt 0:00:44]} 25. Nb7 {[%emt 0:01:06]} Bb6 {[%emt 0:01:27]} 26. Kb1 {[%emt 0:01:35]} Rb8 {[%emt 0:02:32]} 27. d6 {[%emt 0:00:38]} Rc8 {[%emt 0:00:29]} 28. Qe2 {[%emt 0:06:03]} Bc6 {[%emt 0:02:51]} 29. d7 {[%emt 0:00:07]} Bxh1 {[%emt 0:00:47]} 30. dxc8=Q {[%emt 0:01:14]} Qxc8 {[%emt 0:00:26]} 31. Nd6 {[%emt 0:00:04]} Qc6 {[%emt 0:00:13]} 32. Qf1 {[%emt 0:01:07]} Bd5 {[%emt 0:00:50]} 33. Qd3 {[%emt 0:00:43]} Bf3 {[%emt 0:00:57]} 34. Rd2 {[%emt 0:00:28]} Bc5 {[%emt 0:01:30]} 35. a3 {[%emt 0:01:20]} Kg7 {[%emt 0:01:04]} 36. b4 {[%emt 0:00:24]} Bxd6 {[%emt 0:01:29]} 37. Qxd6 {[%emt 0:00:04]} Qxc3 {[%emt 0:00:16] normal} 0-1

[Event "GER-ch Youth U14w 2019"]
[Site "Willingen"]
[Date "2019.06.09"]
[Round "2.1"]
[White "Bashylina, Luisa"]
[Black "Oswald, Hannah"]
[Result "1/2-1/2"]
[ECO "C45"]
[WhiteElo "1886"]
[BlackElo "1632"]
[Annotator "NA"]
[PlyCount "68"]
[EventDate "2019.06.07"]
[EventType "swiss"]
[EventRounds "9"]
[EventCountry "GER"]
[SourceTitle "playchess.com"]
[Source "ChessBase"]
[SourceQuality "1"]
[TimeControl "40/5400+30:1800+30"]

1. e4 {[%emt 0:00:00]} e5 {[%emt 0:00:00]} 2. Nf3 {[%emt 0:00:00]} Nc6 {[%emt 0:00:00]} 3. d4 {[%emt 0:00:14]} exd4 {[%emt 0:00:00]} 4. Nxd4 {[%emt 0:00:04]} Bc5 {[%emt 0:00:07]} 5. Be3 {[%emt 0:00:05]} Qf6 {[%emt 0:00:18]} 6. c3 {[%emt 0:00:04]} Nge7 {[%emt 0:01:00]} 7. Bc4 {[%emt 0:00:09]} Ne5 {[%emt 0:01:39]} 8. Be2 {[%emt 0:00:07]} d6 {[%emt 0:04:35]} 9. O-O {[%emt 0:02:32]} Qg6 {[%emt 0:06:27]} 10. f4 {[%emt 0:04:16]} N5c6 {[%emt 0:05:41]} 11. Nd2 {[%emt 0:00:32]} O-O {[%emt 0:04:10]} 12. Bh5 {[%emt 0:04:03]} Qf6 {[%emt 0:03:48]} 13. N2b3 {[%emt 0:04:50]} Bb6 {[%emt 0:06:39]} 14. Kh1 {[%emt 0:08:15]} Ng6 {[%emt 0:08:28]} 15. Qd2 {[%emt 0:07:31]} Qd8 {[%emt 0:07:31]} 16. a4 {[%emt 0:08:01]} a5 {[%emt 0:04:26]} 17. Nxc6 {[%emt 0:02:49]} bxc6 {[%emt 0:01:39]} 18. Bxb6 {[%emt 0:02:01]} cxb6 {[%emt 0:00:10]} 19. Rad1 {[%emt 0:02:08]} d5 {[%emt 0:03:07]} 20. exd5 {[%emt 0:00:55]} Qxd5 {[%emt 0:00:56]} 21. Qxd5 {[%emt 0:00:50]} cxd5 {[%emt 0:00:07]} 22. f5 {[%emt 0:06:03]} Ne7 {[%emt 0:01:18]} 23. f6 {[%emt 0:00:22]} Nf5 {[%emt 0:03:32]} 24. fxg7 {[%emt 0:00:51]} Kxg7 {[%emt 0:00:58]} 25. Rfe1 {[%emt 0:01:23]} Be6 {[%emt 0:06:53]} 26. Bf3 {[%emt 0:02:22]} Rad8 {[%emt 0:01:20]} 27. Nd4 {[%emt 0:17:35]} Nxd4 {[%emt 0:00:52]} 28. Rxd4 {[%emt 0:00:12]} Rd7 {[%emt 0:01:23]} 29. Be2 {[%emt 0:04:58]} Rfd8 {[%emt 0:04:55]} 30. Bb5 {[%emt 0:01:56]} Rd6 {[%emt 0:00:56]} 31. Bd3 {[%emt 0:00:50]} h6 {[%emt 0:05:25]} 32. Re3 {[%emt 0:01:34]} Kf8 {[%emt 0:05:40]} 33. Rf3 {[%emt 0:05:46]} Ke7 {[%emt 0:01:32]} 34. Rh4 {[%emt 0:02:03]} d4 {[%emt 0:02:20] normal} 1/2-1/2

[Event "GER-ch Youth U14w 2019"]
[Site "Willingen"]
[Date "2019.06.09"]
[Round "2.2"]
[White "Heutling, Elina"]
[Black "Werner, Rosalie"]
[Result "1-0"]
[ECO "C06"]
[WhiteElo "1712"]
[BlackElo "1610"]
[Annotator "NA"]
[PlyCount "57"]
[EventDate "2019.06.07"]
[EventType "swiss"]
[EventRounds "9"]
[EventCountry "GER"]
[SourceTitle "playchess.com"]
[Source "ChessBase"]
[SourceQuality "1"]
[TimeControl "40/5400+30:1800+30"]

1. e4 {[%emt 0:00:00]} e6 {[%emt 0:00:00]} 2. d4 {[%emt 0:00:00]} d5 {[%emt 0:00:00]} 3. Nd2 {[%emt 0:00:00]} Nf6 {[%emt 0:00:00]} 4. e5 {[%emt 0:00:00]} Nfd7 {[%emt 0:00:00]} 5. Bd3 {[%emt 0:00:00]} c5 {[%emt 0:00:00]} 6. c3 {[%emt 0:00:23]} Nc6 {[%emt 0:00:04]} 7. Ne2 {[%emt 0:00:11]} cxd4 {[%emt 0:00:05]} 8. cxd4 {[%emt 0:00:10]} f6 {[%emt 0:00:06]} 9. exf6 {[%emt 0:00:42]} Nxf6 {[%emt 0:00:07]} 10. O-O {[%emt 0:02:01]} Bd6 {[%emt 0:00:06]} 11. Nf3 {[%emt 0:01:22]} O-O {[%emt 0:00:12]} 12. Bf4 {[%emt 0:03:35]} Bxf4 {[%emt 0:01:04]} 13. Nxf4 {[%emt 0:00:17]} Ng4 {[%emt 0:00:11]} 14. Ne2 {[%emt 0:12:02]} a6 {[%emt 0:09:14]} 15. h3 {[%emt 0:07:28]} Nf6 {[%emt 0:08:03]} 16. Re1 {[%emt 0:03:14]} Qd6 {[%emt 0:12:16]} 17. Qd2 {[%emt 0:09:11]} Bd7 {[%emt 0:02:39]} 18. Nf4 {[%emt 0:11:34]} Ne4 {[%emt 0:23:01]} 19. Bxe4 {[%emt 0:04:48]} Qxf4 {[%emt 0:01:30]} 20. Qxf4 {[%emt 0:08:50]} Rxf4 {[%emt 0:03:13]} 21. Bd3 {[%emt 0:02:10]} Nxd4 {[%emt 0:02:27]} 22. Ne5 {[%emt 0:00:56]} Bc6 {[%emt 0:07:08]} 23. Rad1 {[%emt 0:04:26]} Raf8 {[%emt 0:09:47]} 24. Rd2 R8f6 {[%emt 0:03:30]} 25. Re3 {[%emt 0:09:17]} g6 {[%emt 0:12:06]} 26. f3 {[%emt 0:07:11]} Kg7 {[%emt 0:00:48]} 27. Kf2 {[%emt 0:01:18]} Nb5 {[%emt 0:01:27]} 28. Rc2 {[%emt 0:01:21]} Nd4 {[%emt 0:00:39]} 29. Rc1 {[%emt 0:01:01] normal} 1-0

[Event "GER-ch Youth U14w 2019"]
[Site "Willingen"]
[Date "2019.06.09"]
[Round "2.3"]
[White "Butenandt, Svenja"]
[Black "Yue, Qizhou"]
[Result "0-1"]
[ECO "E46"]
[WhiteElo "1722"]
[BlackElo "1840"]
[Annotator "NA"]
[PlyCount "81"]
[EventDate "2019.06.07"]
[EventType "swiss"]
[EventRounds "9"]
[EventCountry "GER"]
[SourceTitle "playchess.com"]
[Source "ChessBase"]
[SourceQuality "1"]
[TimeControl "40/5400+30:1800+30"]

1. d4 {[%emt 0:00:00]} Nf6 {[%emt 0:00:00]} 2. c4 {[%emt 0:00:00]} e6 {[%emt 0:00:00]} 3. Nc3 {[%emt 0:00:00]} Bb4 {[%emt 0:00:00]} 4. e3 {[%emt 0:00:16]} O-O {[%emt 0:00:23]} 5. Nge2 {[%emt 0:00:12]} d6 {[%emt 0:02:39]} 6. a3 {[%emt 0:01:09]} Bxc3+ {[%emt 0:00:40]} 7. Nxc3 {[%emt 0:00:07]} Nc6 {[%emt 0:00:39]} 8. e4 {[%emt 0:03:00]} e5 {[%emt 0:04:10]} 9. d5 {[%emt 0:00:52]} Ne7 {[%emt 0:06:45]} 10. Be2 {[%emt 0:01:27]} Nd7 {[%emt 0:01:59]} 11. O-O {[%emt 0:02:13]} f5 {[%emt 0:04:40]} 12. f3 {[%emt 0:07:07]} a5 {[%emt 0:09:37]} 13. Be3 {[%emt 0:02:16]} f4 {[%emt 0:12:42]} 14. Bf2 {[%emt 0:00:24]} g5 {[%emt 0:02:54]} 15. b4 {[%emt 0:01:42]} Nf6 {[%emt 0:09:05]} 16. c5 {[%emt 0:03:00]} axb4 {[%emt 0:00:48]} 17. axb4 {[%emt 0:00:13]} Rxa1 {[%emt 0:00:22]} 18. Qxa1 {[%emt 0:00:05]} g4 {[%emt 0:04:07]} 19. Bh4 {[%emt 0:04:49]} h5 {[%emt 0:02:11]} 20. Qd1 {[%emt 0:03:06]} gxf3 {[%emt 0:03:35]} 21. Bxf3 {[%emt 0:02:51]} Ng4 {[%emt 0:00:45]} 22. Qe2 {[%emt 0:01:01]} Kh7 {[%emt 0:03:56]} 23. Ra1 {[%emt 0:02:06]} Rg8 24. Ra8 {[%emt 0:01:37]} Qf8 {[%emt 0:06:06]} 25. Nb5 {[%emt 0:13:22]} dxc5 {[%emt 0:03:15]} 26. Na7 {[%emt 0:09:19]} cxb4 {[%emt 0:04:44]} 27. d6 {[%emt 0:02:59]} cxd6 {[%emt 0:01:41]} 28. Bxe7 {[%emt 0:00:21]} Qxe7 {[%emt 0:00:12]} 29. Rxc8 {[%emt 0:01:21]} Rxc8 {[%emt 0:00:21]} 30. Nxc8 {[%emt 0:00:09]} Qd7 {[%emt 0:04:58]} 31. Bxg4 {[%emt 0:03:56]} hxg4 {[%emt 0:03:16]} 32. Qc4 {[%emt 0:01:50]} Kg7 {[%emt 0:01:44]} 33. Nb6 {[%emt 0:02:19]} Qc6 {[%emt 0:00:29]} 34. Qxb4 {[%emt 0:04:22]} Qc1+ {[%emt 0:01:53]} 35. Kf2 {[%emt 0:00:14]} Qe3+ {[%emt 0:00:53]} 36. Kf1 {[%emt 0:00:07]} g3 {[%emt 0:00:28]} 37. hxg3 {[%emt 0:00:55]} fxg3 {[%emt 0:00:12]} 38. Qb2 {[%emt 0:00:57]} Qd3+ {[%emt 0:00:42]} 39. Ke1 {[%emt 0:01:09]} Qxe4+ {[%emt 0:00:14]} 40. Kd1 {[%emt 0:03:06]} Qd3+ {[%emt 0:01:15]} 41. Ke1 {[%emt 0:30:08] normal} 0-1

[Event "GER-ch Youth U14w 2019"]
[Site "Willingen"]
[Date "2019.06.09"]
[Round "2.5"]
[White "Zoellner, Bente"]
[Black "Wagner, Margarethe"]
[Result "1-0"]
[ECO "E61"]
[WhiteElo "1530"]
[BlackElo "1741"]
[Annotator "NA"]
[PlyCount "74"]
[EventDate "2019.06.07"]
[EventType "swiss"]
[EventRounds "9"]
[EventCountry "GER"]
[SourceTitle "playchess.com"]
[Source "ChessBase"]
[SourceQuality "1"]
[TimeControl "40/5400+30:1800+30"]

1. d4 {[%emt 0:00:00]} Nf6 {[%emt 0:00:00]} 2. c4 {[%emt 0:00:00]} g6 {[%emt 0:00:00]} 3. Nc3 {[%emt 0:00:04]} Bg7 {[%emt 0:00:08]} 4. Nf3 {[%emt 0:00:25]} d6 {[%emt 0:01:02]} 5. Bg5 {[%emt 0:00:56]} Nbd7 {[%emt 0:01:23]} 6. e4 {[%emt 0:01:01]} h6 {[%emt 0:03:49]} 7. Be3 {[%emt 0:01:32]} e5 {[%emt 0:03:16]} 8. d5 {[%emt 0:01:57]} O-O {[%emt 0:03:16]} 9. Bd3 {[%emt 0:01:17]} a5 {[%emt 0:03:00]} 10. O-O {[%emt 0:01:14]} b6 {[%emt 0:03:31]} 11. a3 {[%emt 0:03:58]} Nc5 {[%emt 0:02:27]} 12. Bc2 {[%emt 0:03:26]} Bd7 {[%emt 0:09:51]} 13. b4 {[%emt 0:02:34]} axb4 {[%emt 0:02:01]} 14. axb4 {[%emt 0:01:21]} Na6 {[%emt 0:02:48]} 15. Qb1 {[%emt 0:03:32]} Qe7 {[%emt 0:07:15]} 16. h3 {[%emt 0:07:20]} Rfc8 {[%emt 0:08:51]} 17. Ra2 {[%emt 0:05:09]} Qe8 {[%emt 0:03:06]} 18. Ba4 {[%emt 0:06:11]} Bxa4 {[%emt 0:02:42]} 19. Rxa4 {[%emt 0:01:13]} c5 {[%emt 0:03:34]} 20. dxc6 {[%emt 0:01:58]} Nc7 {[%emt 0:05:53]} 21. b5 {[%emt 0:02:27]} Rab8 {[%emt 0:02:20]} 22. Qc1 {[%emt 0:05:50]} Kh7 {[%emt 0:01:00]} 23. Qa3 {[%emt 0:02:57]} Bf8 {[%emt 0:00:47]} 24. Qb2 {[%emt 0:03:45]} Qd8 {[%emt 0:03:54]} 25. Rd1 {[%emt 0:02:26]} Qe8 {[%emt 0:00:59]} 26. Qc2 {[%emt 0:02:55]} Qe7 {[%emt 0:03:53]} 27. Ra7 {[%emt 0:02:39]} Qe8 {[%emt 0:02:43]} 28. Na4 {[%emt 0:02:36]} Na8 {[%emt 0:02:39]} 29. Rxa8 {[%emt 0:03:51]} Rxa8 {[%emt 0:00:06]} 30. Nxb6 {[%emt 0:00:07]} Rab8 {[%emt 0:00:52]} 31. Nxc8 {[%emt 0:00:22]} Qxc8 {[%emt 0:00:12]} 32. Ra1 {[%emt 0:01:37]} Kg8 {[%emt 0:02:25]} 33. Ra7 {[%emt 0:01:43]} Ne8 {[%emt 0:01:48]} 34. Qa4 {[%emt 0:01:31]} f5 {[%emt 0:03:42]} 35. b6 {[%emt 0:02:07]} f4 {[%emt 0:01:25]} 36. b7 {[%emt 0:00:59]} Qc7 {[%emt 0:02:11]} 37. Bd2 {[%emt 0:05:16]} Qd8 {[%emt 0:04:03] normal} 1-0